[Event "Titled Tuesday Blitz May 23 Late 2023"]
[White "Bryakin, Mikhail"]
[Black "Spitzl, Vinzent"]
[WhiteFideId "4165314"]
[BlackFideId "12901253"]
[WhiteElo "2467"]
[BlackElo "2225"]
[Result "1-0"]
[Round "05"]
[TimeControl "180+2"]
[Date "2023.05.23"]
[WhiteClock "0:00:20"]
[BlackClock "0:00:00"]

1. Nf3 {[%clk 0:02:57]}  d5 {[%clk 0:02:59]} 2. c4 {[%clk 0:02:54]}  e6 {[%clk 0:02:59]} 3. b3 {[%clk 0:02:51]}  Nf6 {[%clk 0:02:59]} 4. Bb2 {[%clk 0:02:52]}  Be7 {[%clk 0:02:59]} 5. g3 {[%clk 0:02:53]}  O-O {[%clk 0:02:59]} 6. Bg2 {[%clk 0:02:53]}  c5 {[%clk 0:02:59]} 7. cxd5 {[%clk 0:02:54]}  Nxd5 {[%clk 0:02:59]} 8. O-O {[%clk 0:02:54]}  Nc6 {[%clk 0:02:59]} 9. d4 {[%clk 0:02:54]}  cxd4 {[%clk 0:02:59]} 10. Nxd4 {[%clk 0:02:54]}  Bd7 {[%clk 0:02:59]} 11. Nd2 {[%clk 0:02:47]}  Nxd4 {[%clk 0:02:54]} 12. Bxd4 {[%clk 0:02:48]}  Bc6 {[%clk 0:02:54]} 13. Nc4 {[%clk 0:02:47]}  Nb4 {[%clk 0:02:44]} 14. e4 {[%clk 0:02:47]}  Bb5 {[%clk 0:02:33]} 15. a3 {[%clk 0:02:38]}  Bxc4 {[%clk 0:02:29]} 16. bxc4 {[%clk 0:02:37]}  Nc6 {[%clk 0:02:29]} 17. Bc3 {[%clk 0:02:37]}  Qxd1 {[%clk 0:02:25]} 18. Rfxd1 {[%clk 0:02:38]}  Rfd8 {[%clk 0:02:25]} 19. e5 {[%clk 0:02:37]}  Rxd1+ {[%clk 0:02:22]} 20. Rxd1 {[%clk 0:02:38]}  Rd8 {[%clk 0:02:22]} 21. Rxd8+ {[%clk 0:02:38]}  Bxd8 {[%clk 0:02:19]} 22. f4 {[%clk 0:02:38]}  Kf8 {[%clk 0:02:14]} 23. Kf1 {[%clk 0:02:37]}  Ke8 {[%clk 0:02:09]} 24. Be4 {[%clk 0:02:37]}  g6 {[%clk 0:02:07]} 25. a4 {[%clk 0:02:36]}  Bb6 {[%clk 0:02:05]} 26. Ke2 {[%clk 0:02:34]}  h5 {[%clk 0:01:58]} 27. h3 {[%clk 0:02:34]}  Bc5 {[%clk 0:01:56]} 28. g4 {[%clk 0:02:14]}  hxg4 {[%clk 0:01:56]} 29. hxg4 {[%clk 0:02:15]}  Kd7 {[%clk 0:01:54]} 30. Kf3 {[%clk 0:02:13]}  Kc7 {[%clk 0:01:29]} 31. Ke2 {[%clk 0:02:13]}  Ne7 {[%clk 0:01:23]} 32. Ba5+ {[%clk 0:02:12]}  Bb6 {[%clk 0:01:22]} 33. Bb4 {[%clk 0:02:12]}  Nc6 {[%clk 0:01:21]} 34. Bd6+ {[%clk 0:02:12]}  Kd7 {[%clk 0:01:19]} 35. c5 {[%clk 0:02:10]}  Ba5 {[%clk 0:01:18]} 36. Kd3 {[%clk 0:02:09]}  Bd8 {[%clk 0:01:17]} 37. Bg2 {[%clk 0:02:05]}  a6 {[%clk 0:01:17]} 38. Kc4 {[%clk 0:02:05]}  Ba5 {[%clk 0:01:17]} 39. Kd3 {[%clk 0:02:05]}  Bd8 {[%clk 0:01:17]} 40. Ke4 {[%clk 0:02:06]}  Ba5 {[%clk 0:01:15]} 41. Bf1 {[%clk 0:02:06]}  Bd8 {[%clk 0:01:15]} 42. Bc4 {[%clk 0:02:06]}  Ba5 {[%clk 0:01:11]} 43. f5 {[%clk 0:02:06]}  gxf5+ {[%clk 0:01:01]} 44. gxf5 {[%clk 0:02:07]}  Bd8 {[%clk 0:01:00]} 45. f6 {[%clk 0:02:06]}  Ba5 {[%clk 0:00:59]} 46. Be2 {[%clk 0:02:05]}  Bc3 {[%clk 0:00:57]} 47. Bd1 {[%clk 0:02:05]}  Bb2 {[%clk 0:00:55]} 48. Kf4 {[%clk 0:02:02]}  Bc3 {[%clk 0:00:54]} 49. Bf3 {[%clk 0:02:01]}  Bb2 {[%clk 0:00:53]} 50. Kg5 {[%clk 0:01:48]}  Nxe5 {[%clk 0:00:37]} 51. Bxb7 {[%clk 0:01:47]}  a5 {[%clk 0:00:37]} 52. Be4 {[%clk 0:01:35]}  Nc4 {[%clk 0:00:28]} 53. Be7 {[%clk 0:01:35]}  Ne5 {[%clk 0:00:26]} 54. Kh6 {[%clk 0:01:27]}  Nc6 {[%clk 0:00:20]} 55. Bxc6+ {[%clk 0:01:23]}  Kxc6 {[%clk 0:00:20]} 56. Kg7 {[%clk 0:01:24]}  e5 {[%clk 0:00:20]} 57. Kxf7 {[%clk 0:01:24]}  e4 {[%clk 0:00:20]} 58. Kg6 {[%clk 0:01:19]}  e3 {[%clk 0:00:16]} 59. f7 {[%clk 0:01:19]}  e2 {[%clk 0:00:16]} 60. f8=Q {[%clk 0:01:19]}  e1=Q {[%clk 0:00:16]} 61. Qf3+ {[%clk 0:00:47]}  Kd7 {[%clk 0:00:14]} 62. Qb7+ {[%clk 0:00:47]}  Ke6 {[%clk 0:00:13]} 63. Qxb2 {[%clk 0:00:43]}  Kxe7 {[%clk 0:00:13]} 64. Qb7+ {[%clk 0:00:38]}  Kd8 {[%clk 0:00:14]} 65. Qb8+ {[%clk 0:00:37]}  Kd7 {[%clk 0:00:13]} 66. Qd6+ {[%clk 0:00:32]}  Kc8 {[%clk 0:00:13]} 67. Qa6+ {[%clk 0:00:32]}  Kc7 {[%clk 0:00:10]} 68. Qd6+ {[%clk 0:00:31]}  Kc8 {[%clk 0:00:10]} 69. Kf7 {[%clk 0:00:25]}  Qf2+ {[%clk 0:00:09]} 70. Ke7 {[%clk 0:00:24]}  Qh4+ {[%clk 0:00:05]} 71. Qf6 {[%clk 0:00:24]}  Qxa4 {[%clk 0:00:05]} 72. Qa6+ {[%clk 0:00:22]}  Kc7 {[%clk 0:00:05]} 73. Qa7+ {[%clk 0:00:18]}  Kc8 {[%clk 0:00:04]} 74. Qa6+ {[%clk 0:00:18]}  Kc7 {[%clk 0:00:04]} 75. Qb6+ {[%clk 0:00:18]}  Kc8 {[%clk 0:00:05]} 76. Qe6+ {[%clk 0:00:19]}  Kc7 {[%clk 0:00:04]} 77. Qd6+ {[%clk 0:00:20]}  Kc8 {[%clk 0:00:05]} 78. Qd8+ {[%clk 0:00:20]}  Kb7 {[%clk 0:00:05]} 79. Qd7+ {[%clk 0:00:20]}  Kb8 {[%clk 0:00:00]} 80. Qxa4 {[%clk 0:00:20]} 1-0


[Site "https://www.chess.com"]

[Event "Titled Tuesday Blitz May 23 Late 2023"]
[White "Musovic, Armin"]
[Black "Dimitrov, Atanas"]
[WhiteFideId "939935"]
[BlackFideId "2901315"]
[WhiteElo "2322"]
[BlackElo "2705"]
[Result "0-1"]
[Round "05"]
[TimeControl "180+2"]
[Date "2023.05.23"]
[WhiteClock "0:00:14"]
[BlackClock "0:00:09"]

1. a3 {[%clk 0:03:00]}  e5 {[%clk 0:02:57]} 2. d4 {[%clk 0:03:00]}  exd4 {[%clk 0:02:57]} 3. Qxd4 {[%clk 0:03:01]}  Nc6 {[%clk 0:02:57]} 4. Qa4 {[%clk 0:03:01]}  Nf6 {[%clk 0:02:57]} 5. Nc3 {[%clk 0:03:01]}  Bc5 {[%clk 0:02:46]} 6. Bg5 {[%clk 0:03:01]}  O-O {[%clk 0:02:42]} 7. O-O-O {[%clk 0:02:51]}  Be7 {[%clk 0:02:41]} 8. e3 {[%clk 0:02:49]}  d6 {[%clk 0:02:41]} 9. Bd3 {[%clk 0:02:41]}  Ne5 {[%clk 0:02:38]} 10. Be2 {[%clk 0:02:29]}  Bd7 {[%clk 0:02:34]} 11. Qd4 {[%clk 0:02:22]}  Bc6 {[%clk 0:02:30]} 12. Nf3 {[%clk 0:02:21]}  Nfd7 {[%clk 0:02:26]} 13. h4 {[%clk 0:01:37]}  h6 {[%clk 0:02:14]} 14. Rdg1 {[%clk 0:01:20]}  Bf6 {[%clk 0:01:35]} 15. Qf4 {[%clk 0:01:13]}  Ng6 {[%clk 0:01:29]} 16. Qg3 {[%clk 0:01:09]}  hxg5 {[%clk 0:01:14]} 17. hxg5 {[%clk 0:01:10]}  Bxc3 {[%clk 0:01:14]} 18. Qh3 {[%clk 0:01:01]}  Bxb2+ {[%clk 0:01:04]} 19. Kxb2 {[%clk 0:01:02]}  Re8 {[%clk 0:01:04]} 20. Qh7+ {[%clk 0:00:52]}  Kf8 {[%clk 0:01:05]} 21. Nd4 {[%clk 0:00:52]}  Qxg5 {[%clk 0:00:58]} 22. f4 {[%clk 0:00:47]}  Qf6 {[%clk 0:00:56]} 23. f5 {[%clk 0:00:38]}  Rxe3 {[%clk 0:00:45]} 24. c3 {[%clk 0:00:27]}  Rxe2+ {[%clk 0:00:33]} 25. Nxe2 {[%clk 0:00:28]}  Qxf5 {[%clk 0:00:33]} 26. Rf1 {[%clk 0:00:14]}  Qb5+ {[%clk 0:00:33]} 27. Kc1 {[%clk 0:00:15]}  Nde5 {[%clk 0:00:27]} 28. Nd4 {[%clk 0:00:14]}  Qc4 {[%clk 0:00:18]} 29. Qh3 {[%clk 0:00:08]}  Nd3+ {[%clk 0:00:15]} 30. Kd2 {[%clk 0:00:08]}  Ndf4 {[%clk 0:00:14]} 31. Qe3 {[%clk 0:00:06]}  Bxg2 {[%clk 0:00:14]} 32. Rh8+ {[%clk 0:00:05]}  Nxh8 {[%clk 0:00:14]} 33. Rxf4 {[%clk 0:00:05]}  Re8 {[%clk 0:00:11]} 34. Qg3 {[%clk 0:00:05]}  Bd5 {[%clk 0:00:09]} 35. Qg5 {[%clk 0:00:05]}  Ng6 {[%clk 0:00:09]} 36. Qxg6 {[%clk 0:00:05]}  Qa2+ {[%clk 0:00:07]} 37. Nc2 {[%clk 0:00:05]}  Bb3 {[%clk 0:00:06]} 38. Qh7 {[%clk 0:00:05]}  Qxc2+ {[%clk 0:00:06]} 39. Qxc2 {[%clk 0:00:06]}  Bxc2 {[%clk 0:00:07]} 40. Kxc2 {[%clk 0:00:07]}  Re5 {[%clk 0:00:07]} 41. Rh4 {[%clk 0:00:07]}  Ke7 {[%clk 0:00:07]} 42. Rb4 {[%clk 0:00:07]}  b6 {[%clk 0:00:07]} 43. a4 {[%clk 0:00:08]}  a5 {[%clk 0:00:07]} 44. Rc4 {[%clk 0:00:08]}  Rc5 {[%clk 0:00:07]} 45. Rg4 {[%clk 0:00:09]}  g5 {[%clk 0:00:07]} 46. Rg1 {[%clk 0:00:08]}  Kf6 {[%clk 0:00:08]} 47. Kd3 {[%clk 0:00:09]}  Kg6 {[%clk 0:00:08]} 48. c4 {[%clk 0:00:09]}  f5 {[%clk 0:00:09]} 49. Kd4 {[%clk 0:00:10]}  f4 {[%clk 0:00:09]} 50. Re1 {[%clk 0:00:10]}  Re5 {[%clk 0:00:09]} 51. Rh1 {[%clk 0:00:09]}  f3 {[%clk 0:00:09]} 52. Rh8 {[%clk 0:00:09]}  Rf5 {[%clk 0:00:07]} 53. Rg8+ {[%clk 0:00:09]}  Kh7 {[%clk 0:00:07]} 54. Rc8 {[%clk 0:00:10]}  f2 {[%clk 0:00:07]} 55. Rxc7+ {[%clk 0:00:10]}  Kg6 {[%clk 0:00:08]} 56. Rc6 {[%clk 0:00:11]}  f1=Q {[%clk 0:00:08]} 57. Rxd6+ {[%clk 0:00:11]}  Kh5 {[%clk 0:00:09]} 58. Rxb6 {[%clk 0:00:11]}  Qf2+ {[%clk 0:00:09]} 59. Ke4 {[%clk 0:00:12]}  Qxb6 {[%clk 0:00:09]} 60. c5 {[%clk 0:00:13]}  Rxc5 {[%clk 0:00:08]} 61. Kf3 {[%clk 0:00:13]}  Qb3+ {[%clk 0:00:08]} 62. Ke2 {[%clk 0:00:13]}  Rc2+ {[%clk 0:00:08]} 63. Kd1 {[%clk 0:00:14]}  Qb1# {[%clk 0:00:09]} 0-1


[Site "https://www.chess.com"]

[Event "Titled Tuesday Blitz May 23 Late 2023"]
[White "Sun, Rick"]
[Black "Seletsky, Grigory"]
[WhiteFideId "30909481"]
[BlackFideId "14112191"]
[WhiteElo "2169"]
[BlackElo "2491"]
[Result "1-0"]
[Round "05"]
[TimeControl "180+2"]
[Date "2023.05.23"]
[WhiteClock "0:01:26"]
[BlackClock "0:01:43"]

1. e4 {[%clk 0:03:00]}  e5 {[%clk 0:02:44]} 2. Nf3 {[%clk 0:03:00]}  Nc6 {[%clk 0:02:44]} 3. Bb5 {[%clk 0:03:00]}  a6 {[%clk 0:02:41]} 4. Ba4 {[%clk 0:03:00]}  Nf6 {[%clk 0:02:40]} 5. O-O {[%clk 0:03:00]}  b5 {[%clk 0:02:37]} 6. Bb3 {[%clk 0:03:00]}  Be7 {[%clk 0:02:38]} 7. d4 {[%clk 0:02:55]}  d6 {[%clk 0:02:30]} 8. c3 {[%clk 0:02:44]}  O-O {[%clk 0:02:28]} 9. Re1 {[%clk 0:02:44]}  Bb7 {[%clk 0:02:10]} 10. Nbd2 {[%clk 0:02:35]}  Re8 {[%clk 0:02:06]} 11. Ng5 {[%clk 0:02:21]}  Bf8 {[%clk 0:02:06]} 12. Nxf7 {[%clk 0:02:04]}  Qb8 {[%clk 0:02:05]} 13. Nxd6+ {[%clk 0:01:59]}  Kh8 {[%clk 0:02:06]} 14. Nf7+ {[%clk 0:01:58]}  Kg8 {[%clk 0:02:05]} 15. Nxe5+ {[%clk 0:01:58]}  Kh8 {[%clk 0:02:03]} 16. Nf7+ {[%clk 0:01:53]}  Kg8 {[%clk 0:02:03]} 17. Nd6+ {[%clk 0:01:33]}  Kh8 {[%clk 0:02:01]} 18. Nxe8 {[%clk 0:01:33]}  Qxe8 {[%clk 0:02:01]} 19. e5 {[%clk 0:01:32]}  Qg6 {[%clk 0:01:43]} 20. Bc2 {[%clk 0:01:26]} 1-0


[Site "https://www.chess.com"]

[Event "Titled Tuesday Blitz May 23 Late 2023"]
[White "Timmermans, Mark"]
[Black "Dragomirescu, Robin-Alexandru"]
[WhiteFideId "1026399"]
[BlackFideId "1213849"]
[WhiteElo "2460"]
[BlackElo "2356"]
[Result "1-0"]
[Round "05"]
[TimeControl "180+2"]
[Date "2023.05.23"]
[WhiteClock "0:01:43"]
[BlackClock "0:01:11"]

1. e4 {[%clk 0:02:58]}  g6 {[%clk 0:02:57]} 2. d4 {[%clk 0:02:56]}  Nf6 {[%clk 0:02:58]} 3. Nc3 {[%clk 0:02:54]}  d5 {[%clk 0:02:57]} 4. exd5 {[%clk 0:02:24]}  Nxd5 {[%clk 0:02:56]} 5. Nf3 {[%clk 0:02:21]}  Bg7 {[%clk 0:02:56]} 6. Nxd5 {[%clk 0:02:16]}  Qxd5 {[%clk 0:02:55]} 7. Be2 {[%clk 0:02:17]}  c5 {[%clk 0:02:46]} 8. c4 {[%clk 0:02:06]}  Qd6 {[%clk 0:02:43]} 9. dxc5 {[%clk 0:02:02]}  Qxc5 {[%clk 0:02:42]} 10. O-O {[%clk 0:01:59]}  O-O {[%clk 0:02:40]} 11. Be3 {[%clk 0:01:59]}  Qc7 {[%clk 0:02:39]} 12. Qb3 {[%clk 0:01:54]}  Nc6 {[%clk 0:02:36]} 13. Rad1 {[%clk 0:01:55]}  h6 {[%clk 0:02:17]} 14. Nd4 {[%clk 0:01:54]}  Nxd4 {[%clk 0:02:08]} 15. Bxd4 {[%clk 0:01:55]}  e5 {[%clk 0:02:04]} 16. Be3 {[%clk 0:01:56]}  Be6 {[%clk 0:02:04]} 17. Rc1 {[%clk 0:01:55]}  b5 {[%clk 0:01:56]} 18. Qb4 {[%clk 0:01:47]}  bxc4 {[%clk 0:01:37]} 19. Bxc4 {[%clk 0:01:48]}  Rab8 {[%clk 0:01:37]} 20. Bxe6 {[%clk 0:01:47]}  Qxc1 {[%clk 0:01:32]} 21. Qxf8+ {[%clk 0:01:47]}  Kxf8 {[%clk 0:01:18]} 22. Rxc1 {[%clk 0:01:48]}  fxe6 {[%clk 0:01:19]} 23. b3 {[%clk 0:01:46]}  Rb7 {[%clk 0:01:18]} 24. Rc8+ {[%clk 0:01:42]}  Kf7 {[%clk 0:01:18]} 25. Ra8 {[%clk 0:01:43]}  e4 {[%clk 0:01:11]} 26. Rxa7 {[%clk 0:01:43]} 1-0


[Site "https://www.chess.com"]

[Event "Titled Tuesday Blitz May 23 Late 2023"]
[White "Godzwon, Iwo"]
[Black "Balla, Tamas-Kristof"]
[WhiteFideId "21802483"]
[BlackFideId "1208497"]
[WhiteElo "2284"]
[BlackElo "2334"]
[Result "1-0"]
[Round "05"]
[TimeControl "180+2"]
[Date "2023.05.23"]
[WhiteClock "0:00:08"]
[BlackClock "0:00:00"]

1. e4 {[%clk 0:02:58]}  d5 {[%clk 0:02:59]} 2. exd5 {[%clk 0:02:59]}  Qxd5 {[%clk 0:03:00]} 3. Nc3 {[%clk 0:02:59]}  Qa5 {[%clk 0:03:00]} 4. d4 {[%clk 0:03:00]}  Nf6 {[%clk 0:02:59]} 5. Bd2 {[%clk 0:03:00]}  Bg4 {[%clk 0:02:57]} 6. Be2 {[%clk 0:02:57]}  Bxe2 {[%clk 0:02:54]} 7. Qxe2 {[%clk 0:02:57]}  c6 {[%clk 0:02:52]} 8. Nf3 {[%clk 0:02:57]}  Nbd7 {[%clk 0:02:48]} 9. O-O {[%clk 0:02:52]}  Qc7 {[%clk 0:02:47]} 10. Ne5 {[%clk 0:02:51]}  e6 {[%clk 0:02:47]} 11. Bf4 {[%clk 0:02:49]}  Nxe5 {[%clk 0:02:43]} 12. Bxe5 {[%clk 0:02:47]}  Bd6 {[%clk 0:02:43]} 13. Rfe1 {[%clk 0:02:43]}  Bxe5 {[%clk 0:02:25]} 14. dxe5 {[%clk 0:02:41]}  Nd5 {[%clk 0:02:25]} 15. Na4 {[%clk 0:02:14]}  b6 {[%clk 0:02:09]} 16. Rad1 {[%clk 0:02:12]}  O-O {[%clk 0:02:09]} 17. c4 {[%clk 0:02:06]}  Ne7 {[%clk 0:02:08]} 18. Nc3 {[%clk 0:02:03]}  Rad8 {[%clk 0:02:06]} 19. f4 {[%clk 0:01:48]}  Nf5 {[%clk 0:01:58]} 20. Rxd8 {[%clk 0:01:43]}  Rxd8 {[%clk 0:01:57]} 21. Rd1 {[%clk 0:01:44]}  Nd4 {[%clk 0:01:54]} 22. Qe4 {[%clk 0:01:39]}  c5 {[%clk 0:01:51]} 23. Kf2 {[%clk 0:01:40]}  h6 {[%clk 0:01:50]} 24. b3 {[%clk 0:01:37]}  Qe7 {[%clk 0:01:46]} 25. g3 {[%clk 0:01:36]}  g5 {[%clk 0:01:43]} 26. Rd3 {[%clk 0:01:24]}  Kh8 {[%clk 0:01:39]} 27. Qe3 {[%clk 0:01:13]}  Nf5 {[%clk 0:01:34]} 28. Qd2 {[%clk 0:00:44]}  Rxd3 {[%clk 0:01:30]} 29. Qxd3 {[%clk 0:00:45]}  gxf4 {[%clk 0:01:30]} 30. Ne4 {[%clk 0:00:45]}  fxg3+ {[%clk 0:01:28]} 31. hxg3 {[%clk 0:00:46]}  Qc7 {[%clk 0:01:14]} 32. g4 {[%clk 0:00:32]}  Qxe5 {[%clk 0:00:42]} 33. gxf5 {[%clk 0:00:30]}  Qxf5+ {[%clk 0:00:42]} 34. Kg2 {[%clk 0:00:28]}  Qg4+ {[%clk 0:00:38]} 35. Kf2 {[%clk 0:00:20]}  Qf4+ {[%clk 0:00:27]} 36. Qf3 {[%clk 0:00:20]}  Qh2+ {[%clk 0:00:25]} 37. Qg2 {[%clk 0:00:17]}  Qf4+ {[%clk 0:00:25]} 38. Ke2 {[%clk 0:00:17]}  f5 {[%clk 0:00:21]} 39. Nf2 {[%clk 0:00:17]}  Qe5+ {[%clk 0:00:20]} 40. Kf3 {[%clk 0:00:13]}  Qc3+ {[%clk 0:00:19]} 41. Kf4 {[%clk 0:00:12]}  Qd4+ {[%clk 0:00:19]} 42. Kf3 {[%clk 0:00:12]}  Qc3+ {[%clk 0:00:19]} 43. Kf4 {[%clk 0:00:12]}  Qd4+ {[%clk 0:00:17]} 44. Kg3 {[%clk 0:00:13]}  Qe5+ {[%clk 0:00:14]} 45. Kh3 {[%clk 0:00:12]}  f4 {[%clk 0:00:14]} 46. Qe4 {[%clk 0:00:07]}  Qh5+ {[%clk 0:00:13]} 47. Kg2 {[%clk 0:00:08]}  Qg5+ {[%clk 0:00:13]} 48. Kf1 {[%clk 0:00:07]}  e5 {[%clk 0:00:14]} 49. Nd3 {[%clk 0:00:07]}  Qg3 {[%clk 0:00:09]} 50. Qxe5+ {[%clk 0:00:07]}  Kg8 {[%clk 0:00:09]} 51. Nxf4 {[%clk 0:00:06]}  Qf3+ {[%clk 0:00:08]} 52. Ke1 {[%clk 0:00:06]}  Qg3+ {[%clk 0:00:08]} 53. Ke2 {[%clk 0:00:07]}  Qg4+ {[%clk 0:00:08]} 54. Ke3 {[%clk 0:00:07]}  Qg3+ {[%clk 0:00:08]} 55. Ke4 {[%clk 0:00:08]}  Qe1+ {[%clk 0:00:07]} 56. Kf5 {[%clk 0:00:08]}  Qb1+ {[%clk 0:00:00]} 57. Kf6 {[%clk 0:00:08]} 1-0


[Site "https://www.chess.com"]

[Event "Titled Tuesday Blitz May 23 Late 2023"]
[White "Schnaider, Ilan"]
[Black "reevecanada"]
[WhiteFideId "169013"]
[WhiteElo "2224"]
[BlackElo "2439"]
[Result "1-0"]
[Round "05"]
[TimeControl "180+2"]
[Date "2023.05.23"]
[WhiteClock "0:01:16"]
[BlackClock "0:00:05"]

1. e4 {[%clk 0:03:00]}  c5 {[%clk 0:01:14]} 2. Nf3 {[%clk 0:03:00]}  d6 {[%clk 0:01:12]} 3. Bb5+ {[%clk 0:02:59]}  Bd7 {[%clk 0:01:06]} 4. Bxd7+ {[%clk 0:02:59]}  Qxd7 {[%clk 0:01:06]} 5. c4 {[%clk 0:02:59]}  e5 {[%clk 0:01:04]} 6. O-O {[%clk 0:02:56]}  Nf6 {[%clk 0:01:01]} 7. Nc3 {[%clk 0:02:55]}  Nc6 {[%clk 0:01:00]} 8. Re1 {[%clk 0:02:55]}  g6 {[%clk 0:00:59]} 9. d3 {[%clk 0:02:51]}  Bg7 {[%clk 0:00:58]} 10. Bg5 {[%clk 0:02:50]}  Ng8 {[%clk 0:00:56]} 11. Nd5 {[%clk 0:02:48]}  f6 {[%clk 0:00:51]} 12. Be3 {[%clk 0:02:39]}  Nge7 {[%clk 0:00:50]} 13. Qd2 {[%clk 0:02:37]}  O-O {[%clk 0:00:40]} 14. Rab1 {[%clk 0:02:36]}  f5 {[%clk 0:00:37]} 15. Bh6 {[%clk 0:02:30]}  Nxd5 {[%clk 0:00:36]} 16. cxd5 {[%clk 0:02:28]}  Ne7 {[%clk 0:00:35]} 17. Bxg7 {[%clk 0:02:26]}  Kxg7 {[%clk 0:00:35]} 18. Ng5 {[%clk 0:02:27]}  Rf6 {[%clk 0:00:27]} 19. Ne6+ {[%clk 0:02:26]}  Kh8 {[%clk 0:00:25]} 20. Qg5 {[%clk 0:02:23]}  Ng8 {[%clk 0:00:25]} 21. Re3 {[%clk 0:02:15]}  h6 {[%clk 0:00:23]} 22. Rh3 {[%clk 0:02:15]}  Qh7 {[%clk 0:00:20]} 23. Qh4 {[%clk 0:02:09]}  f4 {[%clk 0:00:20]} 24. b4 {[%clk 0:02:06]}  b6 {[%clk 0:00:19]} 25. bxc5 {[%clk 0:02:05]}  bxc5 {[%clk 0:00:19]} 26. Qg4 {[%clk 0:01:56]}  Qd7 {[%clk 0:00:15]} 27. Qg5 {[%clk 0:01:52]}  Qe7 {[%clk 0:00:15]} 28. Qg4 {[%clk 0:01:37]}  Qd7 {[%clk 0:00:14]} 29. Rh4 {[%clk 0:01:35]}  Qc8 {[%clk 0:00:11]} 30. Qg5 {[%clk 0:01:29]}  Rxe6 {[%clk 0:00:09]} 31. dxe6 {[%clk 0:01:28]}  Qxe6 {[%clk 0:00:10]} 32. Rxh6+ {[%clk 0:01:23]}  Nxh6 {[%clk 0:00:09]} 33. Qxh6+ {[%clk 0:01:24]}  Kg8 {[%clk 0:00:10]} 34. Rb7 {[%clk 0:01:24]}  Qf7 {[%clk 0:00:10]} 35. Rxf7 {[%clk 0:01:24]}  Kxf7 {[%clk 0:00:11]} 36. Qh7+ {[%clk 0:01:24]}  Kf6 {[%clk 0:00:11]} 37. Qd7 {[%clk 0:01:23]}  Kg5 {[%clk 0:00:09]} 38. Qxd6 {[%clk 0:01:22]}  Re8 {[%clk 0:00:09]} 39. g3 {[%clk 0:01:20]}  f3 {[%clk 0:00:09]} 40. h4+ {[%clk 0:01:21]}  Kg4 {[%clk 0:00:10]} 41. Kh2 {[%clk 0:01:21]}  g5 {[%clk 0:00:08]} 42. Qg6 {[%clk 0:01:17]}  Rg8 {[%clk 0:00:05]} 43. Qxg8 {[%clk 0:01:16]}  Kh5 {[%clk 0:00:05]} 44. Qxg5# {[%clk 0:01:16]} 1-0


[Site "https://www.chess.com"]

[Event "Titled Tuesday Blitz May 23 Late 2023"]
[White "Weetik, Vjacheslav"]
[Black "Przybylski, Wojciech"]
[WhiteFideId "4153472"]
[BlackFideId "1117599"]
[WhiteElo "2469"]
[BlackElo "2222"]
[Result "0-1"]
[Round "05"]
[TimeControl "180+2"]
[Date "2023.05.23"]
[WhiteClock "0:00:49"]
[BlackClock "0:01:57"]

1. d4 {[%clk 0:02:59]}  Nf6 {[%clk 0:02:57]} 2. c4 {[%clk 0:02:59]}  e6 {[%clk 0:02:57]} 3. g3 {[%clk 0:02:59]}  d5 {[%clk 0:02:56]} 4. Nf3 {[%clk 0:02:59]}  Bb4+ {[%clk 0:02:55]} 5. Bd2 {[%clk 0:02:59]}  Be7 {[%clk 0:02:56]} 6. Bg2 {[%clk 0:02:59]}  O-O {[%clk 0:02:56]} 7. O-O {[%clk 0:02:59]}  Nbd7 {[%clk 0:02:56]} 8. Qc2 {[%clk 0:02:58]}  Nb6 {[%clk 0:02:48]} 9. b3 {[%clk 0:02:52]}  dxc4 {[%clk 0:02:46]} 10. bxc4 {[%clk 0:02:51]}  c5 {[%clk 0:02:46]} 11. Rd1 {[%clk 0:02:21]}  Bd7 {[%clk 0:02:44]} 12. e3 {[%clk 0:01:35]}  Rc8 {[%clk 0:02:43]} 13. Ne5 {[%clk 0:01:36]}  Ba4 {[%clk 0:02:42]} 14. Qc1 {[%clk 0:01:32]}  Bxd1 {[%clk 0:02:41]} 15. Qxd1 {[%clk 0:01:33]}  cxd4 {[%clk 0:02:41]} 16. Bxb7 {[%clk 0:01:29]}  Rc7 {[%clk 0:02:39]} 17. Bf3 {[%clk 0:01:22]}  dxe3 {[%clk 0:02:35]} 18. Bxe3 {[%clk 0:01:20]}  Qxd1+ {[%clk 0:02:30]} 19. Bxd1 {[%clk 0:01:21]}  Nxc4 {[%clk 0:02:29]} 20. Nxc4 {[%clk 0:01:20]}  Rxc4 {[%clk 0:02:29]} 21. Nd2 {[%clk 0:01:21]}  Rc7 {[%clk 0:02:24]} 22. Bb3 {[%clk 0:01:18]}  Nd5 {[%clk 0:02:21]} 23. Bxd5 {[%clk 0:01:11]}  exd5 {[%clk 0:02:21]} 24. Nb3 {[%clk 0:01:12]}  Bf6 {[%clk 0:02:15]} 25. Rd1 {[%clk 0:01:11]}  Rd8 {[%clk 0:02:14]} 26. Kg2 {[%clk 0:01:05]}  d4 {[%clk 0:02:11]} 27. Bf4 {[%clk 0:01:03]}  Rc2 {[%clk 0:02:08]} 28. a4 {[%clk 0:01:04]}  d3 {[%clk 0:02:07]} 29. Nd2 {[%clk 0:00:58]}  Bd4 {[%clk 0:02:04]} 30. Kf3 {[%clk 0:00:57]}  Re8 {[%clk 0:02:03]} 31. Ne4 {[%clk 0:00:56]}  f5 {[%clk 0:01:59]} 32. Nd2 {[%clk 0:00:49]}  Re2 {[%clk 0:01:57]} 0-1


[Site "https://www.chess.com"]

[Event "Titled Tuesday Blitz May 23 Late 2023"]
[White "Goncalves, Davi Sulzbacher"]
[Black "Matinian, Nikita"]
[WhiteFideId "2154510"]
[BlackFideId "24129100"]
[WhiteElo "2182"]
[BlackElo "2422"]
[Result "0-1"]
[Round "05"]
[TimeControl "180+2"]
[Date "2023.05.23"]
[WhiteClock "0:00:17"]
[BlackClock "0:01:31"]

1. Nf3 {[%clk 0:02:56]}  Nf6 {[%clk 0:02:25]} 2. d4 {[%clk 0:02:51]}  g6 {[%clk 0:02:26]} 3. c4 {[%clk 0:02:51]}  Bg7 {[%clk 0:02:26]} 4. Nc3 {[%clk 0:02:51]}  O-O {[%clk 0:02:27]} 5. e4 {[%clk 0:02:51]}  d6 {[%clk 0:02:28]} 6. Be2 {[%clk 0:02:51]}  e5 {[%clk 0:02:28]} 7. d5 {[%clk 0:02:49]}  a5 {[%clk 0:02:27]} 8. Bg5 {[%clk 0:02:49]}  h6 {[%clk 0:02:27]} 9. Bh4 {[%clk 0:02:49]}  Qe8 {[%clk 0:02:19]} 10. O-O {[%clk 0:02:24]}  Nh5 {[%clk 0:02:17]} 11. Nd2 {[%clk 0:02:22]}  Nf4 {[%clk 0:02:16]} 12. c5 {[%clk 0:02:10]}  dxc5 {[%clk 0:02:10]} 13. d6 {[%clk 0:01:51]}  cxd6 {[%clk 0:02:04]} 14. Nc4 {[%clk 0:01:51]}  Nc6 {[%clk 0:02:01]} 15. Nb5 {[%clk 0:01:45]}  Nd4 {[%clk 0:01:58]} 16. Nc7 {[%clk 0:01:23]}  Ndxe2+ {[%clk 0:01:58]} 17. Kh1 {[%clk 0:01:22]}  Bh3 {[%clk 0:01:34]} 18. gxh3 {[%clk 0:01:10]}  Qc8 {[%clk 0:01:33]} 19. Nd5 {[%clk 0:00:29]}  Qxh3 {[%clk 0:01:31]} 20. Nxf4 {[%clk 0:00:17]}  Nxf4 {[%clk 0:01:31]} 0-1


[Site "https://www.chess.com"]